fUSD/lending_fUSD_20241222
["ID","MTS","AMOUNT","RATE_DAILY","PERIOD"]
[346272801,1734856253846,-261.21353409,0.000199,2]
[346272802,1734856253855,-261.21,0.000199,2]
[346272803,1734856253864,-5800.0,0.000199,2]
[346272804,1734856253874,-449.19816251,0.000199,2]
[346272805,1734856253882,-1099.59357972,0.000199,2]
[346272806,1734856253891,-1426.0,0.000199,2]
[346272807,1734856253901,-150.0,0.00019901,2]
[346272808,1734856253910,-150.0,0.0001991,2]
[346272809,1734856253919,-150.0,0.00019915,2]
[346272810,1734856253928,-150.0,0.0001992,2]
[346272811,1734856253937,-150.0,0.00019921,2]
[346272812,1734856253946,-150.0,0.00019924,2]
[346272813,1734856253956,-150.0,0.00019925,2]
[346272814,1734856253965,-150.0,0.00019926,2]
[346272815,1734856253974,-150.0,0.0001993,2]
[346272816,1734856253983,-150.0,0.00019932,2]
[346272817,1734856253991,-170.0,0.00019936,2]
[346272818,1734856254001,-171.81,0.00019936,2]
[346272819,1734856254011,-151.0,0.00019936,2]
[346272820,1734856254020,-151.0,0.00019936,2]
[346272821,1734856254031,-151.0,0.00019936,2]
[346272822,1734856254040,-151.0,0.00019936,2]
[346272823,1734856254049,-151.0,0.00019936,2]
[346272824,1734856254059,-151.0,0.00019936,2]
[346272825,1734856254068,-151.0,0.00019936,2]
[346272826,1734856254077,-151.0,0.00019936,2]
[346272827,1734856254087,-151.0,0.00019936,2]
[346272828,1734856254096,-151.0,0.00019936,2]
[346272829,1734856254105,-153.67,0.00019936,2]
[346272830,1734856254114,-150.0,0.00019936,2]
[346272831,1734856254123,-150.0,0.00019941,2]
[346272832,1734856254133,-150.0,0.00019942,2]
[346272833,1734856254143,-150.0,0.00019943,2]
[346272834,1734856254152,-150.0,0.00019943,2]
[346272835,1734856254163,-150.0,0.00019948,2]
[346272836,1734856254174,-150.0,0.00019949,2]
[346272837,1734856254183,-150.0,0.00019954,2]
[346272838,1734856254192,-150.0,0.00019956,2]
[346272839,1734856254202,-150.0,0.00019957,2]
[346272840,1734856254211,-49284.99050018,0.0001996,2]
[346272841,1734856254221,-150.0,0.00019966,2]
[346272842,1734856254230,-150.0,0.00019966,2]
[346272843,1734856254242,-150.0,0.0001997,2]
[346272844,1734856254252,-26257.0,0.00019973,2]
[346272845,1734856254261,-500.0,0.00019973,2]
[346272846,1734856254271,-500.0,0.00019973,2]
[346272847,1734856254282,-161.60340136,0.00019973,4]
[346272848,1734856254292,-501.80926741,0.00019973,2]
[346272849,1734856254301,-500.7387074,0.00019973,2]
[346272850,1734856254312,-150.0,0.00019977,2]
[346272851,1734856254321,-1566.04238828,0.0001998,2]
[346272852,1734856254330,-3449478.16404267,0.0001998,2]
[346272853,1734856254339,-150.0,0.00019982,2]
[346272854,1734856254349,-150.0,0.00019984,2]
[346272855,1734856254358,-40000.0,0.00019985,2]
[346272856,1734856254367,-21311.78300961,0.0001999,2]
[346272857,1734856254376,-15416.27835465,0.0001999,2]
[346272858,1734856254385,-150.0,0.00019994,2]
[346272859,1734856254394,-281464.05707426,0.00019997,2]
[346272860,1734856254403,-150.0,0.00019998,2]
[346272861,1734856254412,-479.57265574,0.00019999,5]
[346272862,1734856254421,-500.0,0.00019999,2]
[346272863,1734856254430,-500.0,0.00019999,2]
[346272864,1734856254439,-500.0,0.00019999,2]
[346272865,1734856254450,-500.0,0.00019999,2]
[346272866,1734856254459,-500.0,0.00019999,2]
[346272867,1734856254468,-500.0,0.00019999,2]
[346272868,1734856254477,-500.0,0.00019999,2]
[346272869,1734856254486,-500.0,0.00019999,2]
[346272870,1734856254495,-500.0,0.00019999,2]
[346272871,1734856254504,-500.0,0.00019999,2]
[346272872,1734856254513,-500.0,0.00019999,2]
[346272873,1734856254522,-500.0,0.00019999,2]
[346272874,1734856254532,-500.0,0.00019999,2]
[346272875,1734856254541,-412.5345973,0.00019999,2]
[346272876,1734856254550,-500.0,0.00019999,2]
[346272877,1734856254559,-184.35691125,0.00019999,2]
[346272878,1734856254568,-500.0,0.00019999,2]
[346272879,1734856254577,-500.0,0.00019999,2]
[346272880,1734856254586,-500.0,0.00019999,2]
[346272881,1734856254595,-464.8174709,0.00019999,2]
[346272882,1734856254603,-500.0,0.00019999,2]
[346272883,1734856254613,-903.8,0.00019999,2]
[346272884,1734856254621,-500.0,0.00019999,2]
[346272885,1734856254630,-500.0,0.00019999,2]
[346272886,1734856254639,-500.0,0.00019999,2]
[346272887,1734856254648,-500.0,0.00019999,2]
[346272888,1734856254657,-500.0,0.00019999,2]
[346272889,1734856254666,-530.49,0.00019999,2]
[346272890,1734856254675,-500.0,0.00019999,2]
[346272891,1734856254684,-500.0,0.00019999,2]
[346272892,1734856254693,-500.0,0.00019999,2]
[346272893,1734856254702,-299.48369921,0.00019999,2]
[346272894,1734856254711,-354.56258692,0.00019999,2]
[346272895,1734856254719,-500.0,0.00019999,2]
[346272896,1734856254728,-500.0,0.00019999,2]
[346272897,1734856254737,-500.0,0.00019999,2]
[346272898,1734856254746,-500.0,0.00019999,2]
[346272899,1734856254755,-500.0,0.00019999,2]
[346272900,1734856254768,-500.0,0.00019999,2]
[346272901,1734856254777,-500.0,0.00019999,2]
[346272902,1734856254786,-500.0,0.00019999,2]
[346272903,1734856254795,-500.0,0.00019999,2]
[346272904,1734856254804,-500.0,0.00019999,2]
[346272905,1734856254814,-500.0,0.00019999,2]
[346272906,1734856254823,-594.52,0.00019999,2]
[346272907,1734856254832,-500.0,0.00019999,2]
[346272908,1734856254842,-500.0,0.00019999,2]
[346272909,1734856254851,-500.0,0.00019999,2]
[346272910,1734856254860,-500.0,0.00019999,2]
[346272911,1734856254869,-500.0,0.00019999,2]
[346272912,1734856254878,-500.0,0.00019999,2]
[346272913,1734856254887,-500.0,0.00019999,2]
[346272914,1734856254896,-500.0,0.00019999,2]
[346272915,1734856254905,-500.0,0.00019999,2]
[346272916,1734856254914,-500.0,0.00019999,2]
[346272917,1734856254923,-500.0,0.00019999,2]
[346272918,1734856254933,-500.0,0.00019999,2]
[346272919,1734856254942,-1000.0,0.00019999,2]
[346272920,1734856254951,-1000.0,0.00019999,2]
[346272921,1734856254960,-1000.0,0.00019999,2]
[346272922,1734856254969,-1000.0,0.00019999,2]
[346272923,1734856254979,-1000.0,0.00019999,2]
[346272924,1734856254988,-1000.0,0.00019999,2]
[346272925,1734856254998,-1000.0,0.00019999,2]
[346272926,1734856255007,-1000.0,0.00019999,2]
[346272927,1734856255016,-1000.0,0.00019999,2]
[346272928,1734856255025,-1000.0,0.00019999,2]
[346272929,1734856255034,-1000.0,0.00019999,2]
[346272930,1734856255043,-1000.0,0.00019999,2]
[346272931,1734856255052,-1000.0,0.00019999,2]
[346272932,1734856255061,-1000.0,0.00019999,2]
[346272933,1734856255070,-1000.0,0.00019999,2]
[346272934,1734856255080,-500.0,0.00019999,2]
[346272935,1734856255089,-506.97266176,0.00019999,2]
[346272936,1734856255098,-500.0,0.00019999,2]
[346272937,1734856255107,-500.0,0.00019999,2]
[346272938,1734856255117,-500.0,0.00019999,2]
[346272939,1734856255126,-500.0,0.00019999,2]
[346272940,1734856255135,-500.0,0.00019999,2]
[346272941,1734856255144,-500.0,0.00019999,2]
[346272942,1734856255154,-505.75914912,0.00019999,2]
[346272943,1734856255163,-500.0,0.00019999,2]
[346272944,1734856255172,-500.0,0.00019999,2]
[346272945,1734856255182,-516.70579597,0.00019999,2]
[346272946,1734856255192,-500.0,0.00019999,2]
[346272947,1734856255202,-500.0,0.00019999,2]
[346272948,1734856255211,-500.0,0.00019999,2]
[346272949,1734856255220,-500.0,0.00019999,2]
[346272950,1734856255231,-522.27529047,0.00019999,2]
[346272951,1734856255242,-500.0,0.00019999,2]
[346272952,1734856255251,-500.0,0.00019999,2]
[346272953,1734856255260,-500.0,0.00019999,2]
[346272954,1734856255270,-500.0,0.00019999,2]
[346272955,1734856255279,-500.0,0.00019999,2]
[346272956,1734856255288,-504.6308568,0.00019999,2]
[346272957,1734856255298,-2654755.77697716,0.0002,3]
[346272958,1734856255307,-23522.67204109,0.0002,3]
[346272959,1734856255317,-17392912.75595904,0.0002,2]
[346272960,1734856255583,-1165.9087451,0.0002,2]
[346272961,1734856255871,-336.74,0.00019178,2]
[346272962,1734856256330,-171.1426067,0.00019178,2]
[346272963,1734856256340,-364.93739344,0.00019178,2]
[346272964,1734856256358,-135.06260656,0.00019178,2]
[346272965,1734856256367,-500.0,0.00019178,2]
[346272966,1734856256375,-500.0,0.00019178,2]
[346272967,1734856256385,-500.0,0.00019178,2]
[346272968,1734856256393,-500.0,0.00019178,2]
[346272969,1734856256403,-500.0,0.00019178,2]
[346272970,1734856256411,-500.0,0.00019178,2]
[346272971,1734856256420,-500.0,0.00019322,2]
[346272972,1734856256429,-500.0,0.00019452,2]
[346272973,1734856256438,-500.0,0.00019452,2]
[346272974,1734856256448,-500.0,0.00019452,2]
[346272975,1734856256457,-500.0,0.00019452,2]
[346272976,1734856256466,-500.0,0.00019452,2]
[346272977,1734856256475,-13756.0,0.00019534,2]
[346272978,1734856256483,-500.0,0.00019596,2]
[346272979,1734856256492,-577.23,0.00019726,2]
[346272980,1734856256503,-500.0,0.00019726,2]
[346272981,1734856256512,-507.38006002,0.00019726,2]
[346272982,1734856256521,-631.25,0.0001987,2]
[346272983,1734856256531,-18664.91506453,0.0002,2]
[346272984,1734856257118,-500.0,0.00019178,2]
[346272985,1734856257128,-500.0,0.00019178,2]
[346272986,1734856257137,-500.83684614,0.00019178,2]
[346272987,1734856257146,-500.0,0.00019178,2]
[346272988,1734856257155,-716.67,0.00019178,2]
[346272989,1734856257165,-500.0,0.00019178,2]
[346272990,1734856257174,-509.61640796,0.00019178,2]
[346272991,1734856257183,-500.0,0.00019178,2]
[346272992,1734856257192,-500.0,0.00019178,2]
[346272993,1734856257201,-500.0,0.00019178,2]
[346272994,1734856257210,-500.0,0.00019451,2]
[346272995,1734856257220,-500.0,0.00019451,2]
[346272996,1734856257229,-500.0,0.00019452,2]
[346272997,1734856257240,-154.24976201,0.00019452,2]
[346272998,1734856257249,-502.81444908,0.00019452,2]
[346272999,1734856257259,-280.9756164,0.00019452,2]
[346273000,1734856257268,-500.0,0.00019452,2]
[346273001,1734856257277,-716.67,0.00019452,2]
[346273002,1734856257286,-505.57256153,0.00019452,2]
[346273003,1734856257295,-500.0,0.00019452,2]
[346273004,1734856257304,-500.0,0.00019452,2]
[346273005,1734856257313,-1170.0,0.00019534,2]
[346273006,1734856257322,-500.0,0.00019725,2]
[346273007,1734856257331,-500.0,0.00019725,2]
[346273008,1734856257340,-534.2,0.00019726,2]
[346273009,1734856257349,-500.0,0.00019726,2]
[346273010,1734856257358,-716.67,0.00019726,2]
[346273011,1734856257367,-500.0,0.00019999,2]
[346273012,1734856257376,-355789.93071163,0.0002,2]
[346273013,1734856257387,-1156.76820125,0.0002,2]
[346273014,1734856572524,182.54,0.00017917,30]
[346273015,1734856802007,415.07,0.00010137,2]
[346273016,1734857302521,10000.0,0.00012112,2]
[346273020,1734857318129,10000.0,0.00012112,2]
[346273021,1734857328909,10000.0,0.00012112,2]
[346273022,1734857361711,155.0,0.0002,120]
[346273029,1734857431603,-450.0,0.00013,2]
[346273030,1734857431613,-500.0,0.00015,2]
[346273031,1734857431622,-1056.0,0.0001558,2]
[346273032,1734857431631,-221.05709914,0.000163,2]
[346273033,1734857431640,-1056.0,0.000164,2]
[346273034,1734857431650,-696.4,0.00016613,2]
[346273035,1734857431659,-1153.46,0.00016613,2]
[346273036,1734857431668,-250.0,0.00016666,2]
[346273037,1734857431678,-2131.47,0.00016701,2]
[346273038,1734857431687,-150.0,0.00016718,2]
[346273039,1734857431696,-314.81,0.0001673,2]
[346273040,1734857431705,-530.13,0.00016737,2]
[346273041,1734857431716,-1500.0,0.00016763,2]
[346273042,1734857431726,-415.07,0.00016813,2]
[346273043,1734857431735,-550.0,0.00017,2]
[346273044,1734857431745,-150.0,0.00017096,2]
[346273045,1734857431754,-1000.0,0.00017119,2]
[346273046,1734857431763,-250.0,0.00017119,2]
[346273047,1734857431772,-500.0,0.00017177,2]
[346273048,1734857431781,-398.19512356,0.0001722,2]
[346273049,1734857431790,-167.81,0.00017407,2]
[346273050,1734857431799,-319.18,0.00017609,2]
[346273051,1734857431808,-319.18,0.00017613,2]
[346273052,1734857431816,-319.18,0.00017618,2]
[346273053,1734857431826,-319.18,0.00017622,2]
[346273054,1734857431835,-319.18,0.00017627,2]
[346273055,1734857431844,-319.18,0.00017632,2]
[346273056,1734857431853,-319.18,0.00017636,2]
[346273057,1734857431862,-319.18,0.00017641,2]
[346273058,1734857431871,-319.18,0.00017646,2]
[346273059,1734857431881,-319.18,0.0001765,2]
[346273060,1734857431890,-319.18,0.00017655,2]
[346273061,1734857431899,-319.18,0.00017659,2]
[346273062,1734857431908,-500.0,0.00017664,2]
[346273063,1734857431917,-500.0,0.00017664,2]
[346273064,1734857431927,-319.18,0.00017664,2]
[346273065,1734857431937,-319.18,0.00017669,2]
[346273066,1734857431946,-319.18,0.00017673,2]
[346273067,1734857431955,-319.18,0.00017678,2]
[346273068,1734857431966,-319.18,0.00017683,2]
[346273069,1734857431975,-319.18,0.00017687,2]
[346273070,1734857431984,-319.18,0.00017692,2]
[346273071,1734857431993,-319.18,0.00017697,2]
[346273072,1734857432200,-23900.0,0.00017698,2]
[346273073,1734857432212,-250.0,0.00017746,2]
[346273074,1734857432221,-25.9977773,0.00017975,2]
[346273075,1734857432237,-124.0022227,0.00017975,2]
[346273076,1734857432247,-856.49,0.00017999,2]
[346273077,1734857432256,-563.8794373,0.00018356,2]
[346273078,1734857432277,-436.1205627,0.00018356,2]
[346273079,1734857432287,-1000.0,0.00018356,2]
[346273080,1734857432296,-1000.0,0.00018356,2]
[346273081,1734857432305,-1000.0,0.00018356,2]
[346273082,1734857432321,-1000.0,0.00018356,2]
[346273083,1734857432331,-1000.0,0.00018356,2]
[346273084,1734857432341,-1000.0,0.00018356,2]
[346273085,1734857432350,-1000.0,0.00018356,2]
[346273086,1734857432361,-1000.0,0.00018356,2]
[346273087,1734857432370,-1000.0,0.00018356,2]
[346273088,1734857432380,-1000.0,0.00018356,2]
[346273089,1734857432390,-1000.0,0.00018356,2]
[346273090,1734857432399,-1000.0,0.00018356,2]
[346273091,1734857432409,-1000.0,0.00018356,2]
[346273092,1734857432418,-1000.0,0.00018356,2]
[346273093,1734857432428,-1000.0,0.00018356,2]
[346273094,1734857432437,-1000.0,0.00018356,2]
[346273095,1734857432446,-1000.0,0.00018356,2]
[346273096,1734857432455,-1000.0,0.00018356,2]
[346273097,1734857432465,-1000.0,0.00018356,2]
[346273098,1734857432474,-1000.0,0.00018356,2]
[346273099,1734857432483,-1000.0,0.00018356,2]
[346273100,1734857432492,-560.25868215,0.00018356,2]
[346273101,1734857432501,-7936.17863617,0.00018422,2]
[346273102,1734857432512,-1230.44575807,0.00018422,2]
[346273103,1734857432523,-41039.65423655,0.00018422,2]
[346273104,1734857432535,-392.85786275,0.00018422,2]
[346273113,1734857437494,-1703.72990793,0.00018422,2]
[346273114,1734857437549,-372.22790633,0.00018422,2]
[346273115,1734857437604,-2285.0051395,0.00018422,2]
[346273116,1734857437682,-74203.9005527,0.00018422,2]
[346273117,1734857437692,-151.0,0.000186,2]
[346273118,1734857437702,-696.4,0.00018689,2]
[346273119,1734857437713,-500.0,0.0001876,2]
[346273120,1734857437722,-200.0,0.000188,6]
[346273121,1734857437731,-500.0,0.000189,6]
[346273122,1734857437741,-506.55,0.00018929,2]
[346273123,1734857437750,-138199.6235,0.00018964,2]
[346273124,1734857437760,-509.06,0.00018971,2]
[346273125,1734857437770,-469.443,0.00019,2]
[346273126,1734857437779,-4317.6444,0.00019,2]
[346273127,1734857437790,-600.0,0.00019,2]
[346273128,1734857437799,-3430.0,0.00019,4]
[346273129,1734857437809,-164.79,0.00019002,2]
[346273130,1734857437819,-5000.0,0.00019024,2]
[346273131,1734857437829,-437.0,0.00019041,2]
[346273132,1734857437838,-770.54,0.00019041,2]
[346273133,1734857437848,-770.54,0.00019041,2]
[346273134,1734857437859,-437.0,0.00019041,2]
[346273135,1734857437870,-437.0,0.00019041,2]
[346273136,1734857437880,-770.54,0.00019041,2]
[346273138,1734857437889,-436.64,0.00019041,2]
[346273140,1734857437898,-841.6018,0.00019078,2]
[346273142,1734857437907,-800.0,0.000191,6]
[346273144,1734857437916,-491.07,0.00019177,2]
[346273146,1734857437926,-502.2458679,0.00019178,2]
[346273148,1734857437936,-400.64273924,0.00019178,2]
[346273150,1734857437946,-502.69206894,0.00019178,2]
[346273151,1734857437955,-154.59613191,0.00019178,2]
[346273152,1734857437965,-503.91052173,0.00019178,2]
[346273153,1734857437974,-334.40024392,0.00019178,2]
[346273154,1734857437983,-187.36450885,0.00019178,2]
[346273156,1734857437993,-500.0,0.00019178,2]
[346273158,1734857438002,-500.0,0.00019178,2]
[346273159,1734857438011,-500.0,0.00019178,2]
[346273160,1734857438020,-500.0,0.00019178,2]
[346273161,1734857438029,-500.0,0.00019178,2]
[346273162,1734857438038,-500.0,0.00019178,2]
[346273163,1734857438047,-339.11425063,0.00019178,2]
[346273164,1734857438056,-501.19981356,0.00019178,2]
[346273165,1734857438066,-945.97,0.00019178,2]
[346273167,1734857438075,-500.0,0.00019178,2]
[346273169,1734857438084,-500.0,0.00019178,2]
[346273171,1734857438093,-500.0,0.00019178,2]
[346273173,1734857438102,-500.0,0.00019178,2]
[346273175,1734857438111,-500.0,0.00019178,2]
[346273176,1734857438121,-236.87409539,0.00019178,2]
[346273177,1734857438129,-618.88396214,0.00019178,2]
[346273178,1734857438138,-500.0,0.00019178,2]
[346273179,1734857438148,-500.0,0.00019178,2]
[346273180,1734857438158,-500.0,0.00019178,2]
[346273181,1734857438168,-500.0,0.00019178,2]
[346273182,1734857438182,-500.0,0.00019178,2]
[346273183,1734857438191,-500.0,0.00019178,2]
[346273184,1734857438201,-500.0,0.00019178,2]
[346273185,1734857438211,-500.0,0.00019178,2]
[346273186,1734857438221,-500.0,0.00019178,2]
[346273187,1734857438230,-500.0,0.00019178,2]
[346273188,1734857438239,-500.0,0.00019178,2]
[346273189,1734857438248,-500.0,0.00019178,2]
[346273190,1734857438259,-500.0,0.00019178,2]
[346273191,1734857438268,-500.0,0.00019178,2]
[346273192,1734857438277,-500.0,0.00019178,2]
[346273193,1734857438286,-500.0,0.00019178,2]
[346273194,1734857438296,-519.83636993,0.00019178,2]
[346273195,1734857438306,-500.0,0.00019178,2]
[346273196,1734857438317,-500.0,0.00019178,2]
[346273197,1734857438327,-500.0,0.00019178,2]
[346273198,1734857438337,-500.0,0.00019178,2]
[346273199,1734857438346,-500.0,0.00019178,2]
[346273200,1734857438356,-500.0,0.00019178,2]
[346273201,1734857438366,-500.0,0.00019178,2]
[346273202,1734857438375,-500.0,0.00019178,2]
[346273203,1734857438384,-500.0,0.00019178,2]
[346273204,1734857438399,-500.0,0.00019178,2]
[346273205,1734857438408,-500.0,0.00019178,2]
[346273206,1734857438418,-549.24462815,0.00019178,2]
[346273207,1734857438427,-500.0,0.00019178,2]
[346273208,1734857438436,-486.16037409,0.00019178,2]
[346273209,1734857438445,-700.0,0.00019178,2]
[346273210,1734857438454,-500.0,0.00019178,2]
[346273211,1734857438464,-500.0,0.00019178,2]
[346273212,1734857438473,-500.0,0.00019178,2]
[346273213,1734857438482,-500.0,0.00019178,2]
[346273214,1734857438491,-500.0,0.00019178,2]
[346273215,1734857438500,-512.38256132,0.00019178,2]
[346273216,1734857438510,-502.42200341,0.00019178,2]
[346273217,1734857438519,-500.0,0.00019178,2]
[346273218,1734857438529,-500.0,0.00019178,2]
[346273219,1734857438538,-500.0,0.00019178,2]
[346273220,1734857438548,-500.0,0.00019178,2]
[346273221,1734857438557,-500.0,0.00019178,2]
[346273222,1734857438567,-500.0,0.00019178,2]
[346273223,1734857438576,-500.0,0.00019178,2]
[346273224,1734857438585,-500.0,0.00019178,2]
[346273225,1734857438595,-500.0,0.00019178,2]
[346273226,1734857438606,-500.0,0.00019178,2]
[346273227,1734857438616,-500.0,0.00019178,2]
[346273228,1734857438626,-500.0,0.00019178,2]
[346273229,1734857438635,-500.0,0.00019178,2]
[346273230,1734857438645,-439.833172,0.00019178,2]
[346273231,1734857438656,-156.508785,0.00019178,2]
[346273232,1734857438667,-160.308102,0.00019178,2]
[346273233,1734857438677,-612.331633,0.00019178,2]
[346273234,1734857438687,-500.0,0.00019178,2]
[346273235,1734857438697,-500.0,0.00019178,2]
[346273236,1734857438707,-500.0,0.00019178,2]
[346273237,1734857438718,-500.0,0.00019178,2]
[346273238,1734857438727,-576.17,0.00019178,2]
[346273239,1734857438737,-500.0,0.00019178,2]
[346273240,1734857438747,-503.23621371,0.00019178,2]
[346273241,1734857438770,-500.0,0.00019178,2]
[346273242,1734857438781,-502.43911535,0.00019178,2]
[346273243,1734857438791,-500.0,0.00019178,2]
[346273244,1734857438801,-246.67979422,0.00019178,2]
[346273245,1734857438811,-406.12905688,0.00019178,2]
[346273246,1734857438822,-500.0,0.00019178,2]
[346273247,1734857438834,-500.0,0.00019178,2]
[346273248,1734857438844,-500.0,0.00019178,2]
[346273249,1734857438854,-500.0,0.00019178,2]
[346273250,1734857438864,-500.0,0.00019178,2]
[346273251,1734857438875,-500.0,0.00019178,2]
[346273252,1734857438887,-500.0,0.00019178,2]
[346273253,1734857438899,-500.0,0.00019178,2]
[346273254,1734857438909,-500.0,0.00019178,2]
[346273255,1734857438920,-500.0,0.00019178,2]
[346273256,1734857438929,-500.0,0.00019178,2]
[346273257,1734857438938,-500.0,0.00019178,2]
[346273258,1734857438947,-500.0,0.00019178,2]
[346273259,1734857438957,-156.602173,0.00019178,2]
[346273260,1734857438967,-1492.33,0.00019178,2]
[346273261,1734857438976,-500.0,0.00019178,2]
[346273262,1734857438985,-500.0,0.00019178,2]
[346273263,1734857438994,-500.0,0.00019178,2]
[346273264,1734857439004,-500.0,0.00019178,2]
[346273265,1734857439013,-505.42166181,0.00019178,2]
[346273266,1734857439022,-500.0,0.00019178,2]
[346273267,1734857439031,-500.0,0.00019178,2]
[346273268,1734857439040,-504.41460132,0.00019178,2]
[346273269,1734857439048,-500.0,0.00019178,2]
[346273270,1734857439057,-501.65314674,0.00019178,2]
[346273271,1734857439066,-504.44848516,0.00019178,2]
[346273272,1734857439075,-500.0,0.00019178,2]
[346273273,1734857439085,-511.21009177,0.00019178,2]
[346273274,1734857439094,-534.36,0.00019178,2]
[346273275,1734857439103,-502.61372343,0.00019178,2]
[346273276,1734857439111,-500.0,0.00019178,2]
[346273277,1734857439120,-500.57417738,0.00019178,2]
[346273278,1734857439129,-500.0,0.00019178,2]
[346273279,1734857439138,-500.0,0.00019178,2]
[346273280,1734857439148,-500.0,0.00019178,2]
[346273281,1734857439158,-500.0,0.00019178,2]
[346273282,1734857439168,-500.0,0.00019178,2]
[346273283,1734857439178,-500.0,0.00019178,2]
[346273284,1734857439375,-500.0,0.00019178,2]
[346273285,1734857439384,-500.0,0.00019178,2]
[346273286,1734857439394,-500.0,0.00019178,2]
[346273287,1734857439404,-504.18564778,0.00019178,2]
[346273288,1734857439413,-500.0,0.00019178,2]
[346273289,1734857439423,-500.0,0.00019178,2]
[346273290,1734857439432,-500.0,0.00019178,2]
[346273291,1734857439442,-500.0,0.00019178,2]
[346273292,1734857439451,-500.0,0.00019178,2]
[346273293,1734857439460,-772.05,0.00019178,2]
[346273294,1734857439471,-748.97,0.00019178,2]
[346273295,1734857439480,-500.0,0.00019178,2]
[346273296,1734857439489,-251.6451559,0.00019178,2]
[346273297,1734857439498,-500.0,0.00019178,2]
[346273298,1734857439507,-500.0,0.00019178,2]
[346273299,1734857439516,-500.0,0.00019178,2]
[346273300,1734857439525,-500.0,0.00019178,2]
[346273301,1734857439534,-501.71667172,0.00019178,2]
[346273302,1734857439543,-308.56316442,0.00019178,2]
[346273303,1734857439552,-500.0,0.00019178,2]
[346273304,1734857439561,-223.14458597,0.00019178,2]
[346273305,1734857439570,-500.0,0.00019178,2]
[346273306,1734857439579,-500.0,0.00019178,2]
[346273307,1734857439588,-500.0,0.00019178,2]
[346273308,1734857439598,-500.0,0.00019178,2]
[346273309,1734857439607,-500.0,0.00019178,2]
[346273310,1734857439617,-500.0,0.00019178,2]
[346273311,1734857439626,-500.0,0.00019178,2]
[346273312,1734857439635,-500.0,0.00019178,2]
[346273313,1734857439644,-500.0,0.00019178,2]
[346273314,1734857439654,-500.0,0.00019178,2]
[346273315,1734857439663,-500.0,0.00019178,2]
[346273316,1734857439672,-500.0,0.00019178,2]
[346273317,1734857439681,-500.0,0.00019178,2]
[346273318,1734857439691,-500.0,0.00019178,2]
[346273319,1734857439699,-500.0,0.00019178,2]
[346273320,1734857439709,-500.0,0.00019178,2]
[346273321,1734857439720,-500.0,0.00019178,2]
[346273322,1734857439729,-500.0,0.00019178,2]
[346273323,1734857439738,-500.0,0.00019178,2]
[346273324,1734857439748,-500.0,0.00019178,2]
[346273325,1734857439757,-500.95571659,0.00019178,2]
[346273326,1734857439766,-500.0,0.00019178,2]
[346273327,1734857439775,-500.0,0.00019178,2]
[346273328,1734857439784,-500.0,0.00019178,2]
[346273329,1734857439794,-500.0,0.00019178,2]
[346273330,1734857439803,-500.0,0.00019178,2]
[346273331,1734857439812,-500.0,0.00019178,2]